[Event "ONJK-B 2019"]
[Site "Borne"]
[Date "2019.08.06"]
[Round "3.15"]
[White "Mainka, Irmin"]
[Black "Neirynck, Arthur"]
[Result "0-1"]
[ECO "B72"]
[WhiteElo "1611"]
[BlackElo "1514"]
[Annotator "NA"]
[PlyCount "150"]
[EventDate "2019.08.05"]
[EventType "swiss"]
[EventCountry "NED"]
[SourceTitle "playchess.com"]
[Source "ChessBase"]
[SourceQuality "1"]
[TimeControl "5400+30"]

1. e4 {[%emt 0:00:00]} c5 {[%emt 0:00:00]} 2. Nf3 {[%emt 0:00:00]} d6 {[%emt 0:00:01]} 3. d4 {[%emt 0:00:00]} cxd4 {[%emt 0:00:03]} 4. Nxd4 {[%emt 0:00:00]} Nf6 {[%emt 0:00:04]} 5. Nc3 {[%emt 0:00:00]} g6 {[%emt 0:00:10]} 6. Bc4 {[%emt 0:00:41]} Bg7 {[%emt 0:00:30]} 7. O-O {[%emt 0:00:09]} Nc6 {[%emt 0:00:52]} 8. Be3 {[%emt 0:00:18]} Ng4 {[%emt 0:01:16]} 9. Nxc6 {[%emt 0:02:00]} bxc6 {[%emt 0:00:49]} 10. Bd2 {[%emt 0:02:00]} O-O {[%emt 0:00:45]} 11. Bb3 {[%emt 0:00:20]} Rb8 {[%emt 0:06:18]} 12. h3 {[%emt 0:00:32]} Ne5 {[%emt 0:00:48]} 13. Qe2 {[%emt 0:00:52]} Qb6 {[%emt 0:02:57]} 14. Be3 {[%emt 0:00:59]} Qc7 {[%emt 0:03:35]} 15. f4 {[%emt 0:00:19]} Nd7 {[%emt 0:00:59]} 16. Qf2 {[%emt 0:01:50]} Nb6 {[%emt 0:01:33]} 17. Rab1 {[%emt 0:01:14]} Ba6 {[%emt 0:03:33]} 18. Rfd1 {[%emt 0:01:06]} Rfd8 {[%emt 0:06:29]} 19. f5 {[%emt 0:02:03]} Kh8 {[%emt 0:08:03]} 20. Bxf7 {[%emt 0:01:15]} gxf5 {[%emt 0:05:31]} 21. exf5 {[%emt 0:04:13]} Rf8 {[%emt 0:03:37]} 22. Be6 {[%emt 0:00:56]} Bc8 {[%emt 0:02:09]} 23. Bd4 {[%emt 0:01:02]} Bxe6 {[%emt 0:10:39]} 24. Bxg7+ {[%emt 0:00:09]} Kxg7 {[%emt 0:00:34]} 25. Qg3+ {[%emt 0:00:15]} Kh8 {[%emt 0:01:58]} 26. fxe6 {[%emt 0:00:05]} Rf6 {[%emt 0:02:19]} 27. Ne4 {[%emt 0:05:55]} Rxe6 {[%emt 0:06:56]} 28. Qh4 {[%emt 0:00:06]} Rg6 {[%emt 0:03:17]} 29. Ng5 {[%emt 0:05:03]} e5 {[%emt 0:00:56]} 30. Ne4 {[%emt 0:00:43]} Nd5 {[%emt 0:06:22]} 31. Rd2 {[%emt 0:01:35]} Rb4 {[%emt 0:03:22]} 32. Qe1 {[%emt 0:01:06]} Rb8 {[%emt 0:02:47]} 33. b3 {[%emt 0:01:28]} Rbg8 {[%emt 0:01:30]} 34. Kh2 {[%emt 0:01:50]} Nf4 {[%emt 0:01:27]} 35. g3 {[%emt 0:00:12]} Nh5 {[%emt 0:01:10]} 36. g4 {[%emt 0:02:47]} Nf4 {[%emt 0:01:00]} 37. Qh4 {[%emt 0:00:09]} d5 {[%emt 0:02:25]} 38. Ng3 {[%emt 0:01:17]} e4 {[%emt 0:02:16]} 39. Nf5 {[%emt 0:01:36]} Ne6+ {[%emt 0:02:29]} 40. Qg3 {[%emt 0:01:17]} Qxg3+ {[%emt 0:00:11]} 41. Kxg3 {[%emt 0:00:06]} Re8 {[%emt 0:01:38]} 42. Re1 {[%emt 0:01:25]} Ng5 {[%emt 0:00:42]} 43. Rde2 {[%emt 0:00:11]} Nf3 {[%emt 0:00:21]} 44. Rd1 {[%emt 0:00:27]} Kg8 {[%emt 0:00:32]} 45. c3 {[%emt 0:01:00]} Kf7 {[%emt 0:00:09]} 46. Rf1 {[%emt 0:00:30]} Rf6 {[%emt 0:03:09]} 47. a3 {[%emt 0:00:48]} Rg8 {[%emt 0:02:16]} 48. Rd1 {[%emt 0:01:06]} Rxf5 {[%emt 0:00:13]} 49. c4 {[%emt 0:00:39]} Rfg5 {[%emt 0:02:06]} 50. cxd5 {[%emt 0:00:32]} cxd5 {[%emt 0:00:15]} 51. Rc2 {[%emt 0:00:36]} Re8 {[%emt 0:00:52]} 52. h4 {[%emt 0:00:59]} Rge5 {[%emt 0:00:43]} 53. Rc7+ {[%emt 0:00:28]} R8e7 {[%emt 0:00:14]} 54. Rxe7+ {[%emt 0:00:28]} Kxe7 {[%emt 0:00:08]} 55. Kf4 {[%emt 0:00:04]} Kd6 {[%emt 0:00:46]} 56. b4 {[%emt 0:01:04]} Nxh4 {[%emt 0:00:32]} 57. Rh1 {[%emt 0:00:15]} Ng6+ {[%emt 0:00:26]} 58. Ke3 {[%emt 0:00:12]} Re7 {[%emt 0:00:17]} 59. Rh5 {[%emt 0:00:30]} Ne5 {[%emt 0:00:58]} 60. Rh6+ {[%emt 0:01:00]} Kd7 {[%emt 0:00:32]} 61. Ra6 {[%emt 0:00:25]} Kc8 {[%emt 0:01:12]} 62. b5 {[%emt 0:01:03]} Nxg4+ {[%emt 0:00:35]} 63. Ke2 {[%emt 0:00:08]} h5 {[%emt 0:00:29]} 64. Rd6 {[%emt 0:00:37]} Rd7 {[%emt 0:00:19]} 65. Re6 {[%emt 0:00:10]} h4 {[%emt 0:00:35]} 66. Rg6 {[%emt 0:00:10]} Ne5 {[%emt 0:00:26]} 67. Rg5 {[%emt 0:00:22]} Nf3 {[%emt 0:00:16]} 68. Rh5 {[%emt 0:00:33]} Kc7 {[%emt 0:00:19]} 69. Rh6 {[%emt 0:00:39]} Rd6 {[%emt 0:00:08]} 70. Rh7+ {[%emt 0:00:06]} Kb6 {[%emt 0:00:19]} 71. a4 {[%emt 0:00:05]} a6 {[%emt 0:00:29]} 72. bxa6 {[%emt 0:00:14]} Kxa6 {[%emt 0:00:06]} 73. Ke3 {[%emt 0:00:04]} d4+ {[%emt 0:01:36]} 74. Kxe4 {[%emt 0:00:08]} Ng5+ {[%emt 0:00:06]} 75. Ke5 {[%emt 0:00:09]} Nxh7 {[%emt 0:00:12]} 0-1

[Event "ONJK-B 2019"]
[Site "Borne"]
[Date "2019.08.06"]
[Round "3.16"]
[White "Kroon, Lindert"]
[Black "Pol, Florian"]
[Result "1/2-1/2"]
[ECO "B30"]
[WhiteElo "1076"]
[BlackElo "1334"]
[Annotator "NA"]
[PlyCount "126"]
[EventDate "2019.08.05"]
[EventType "swiss"]
[EventCountry "NED"]
[SourceTitle "playchess.com"]
[Source "ChessBase"]
[SourceQuality "1"]
[TimeControl "5400+30"]

1. e4 {[%emt 0:00:00]} c5 {[%emt 0:00:00]} 2. Nf3 {[%emt 0:00:00]} Nc6 {[%emt 0:00:00]} 3. Bb5 {[%emt 0:00:00]} g6 {[%emt 0:00:16]} 4. Nc3 {[%emt 0:00:10]} a6 {[%emt 0:00:17]} 5. Bxc6 {[%emt 0:00:14]} bxc6 {[%emt 0:01:04]} 6. d4 {[%emt 0:00:13]} e6 {[%emt 0:01:12]} 7. Bg5 {[%emt 0:00:41]} Be7 {[%emt 0:00:32]} 8. Bxe7 {[%emt 0:00:06]} Qxe7 {[%emt 0:00:16]} 9. O-O {[%emt 0:00:10]} Nf6 {[%emt 0:00:12]} 10. e5 {[%emt 0:00:26]} Nd5 {[%emt 0:00:14]} 11. Nxd5 {[%emt 0:00:23]} cxd5 {[%emt 0:00:06]} 12. a3 {[%emt 0:00:26]} O-O {[%emt 0:00:12]} 13. b4 {[%emt 0:00:06]} cxd4 {[%emt 0:00:12]} 14. Qxd4 {[%emt 0:00:07]} Bb7 {[%emt 0:00:26]} 15. a4 {[%emt 0:01:47]} Bc6 {[%emt 0:00:27]} 16. c4 {[%emt 0:00:58]} dxc4 {[%emt 0:01:14]} 17. Qxc4 {[%emt 0:00:12]} Rfc8 {[%emt 0:00:22]} 18. Qd3 {[%emt 0:00:44]} Qxb4 {[%emt 0:01:01]} 19. Rfb1 {[%emt 0:01:34]} Qe4 {[%emt 0:00:45]} 20. Qd2 {[%emt 0:01:21]} Rab8 {[%emt 0:00:36]} 21. Rxb8 {[%emt 0:00:45]} Rxb8 {[%emt 0:00:05]} 22. Qd1 {[%emt 0:01:42]} g5 {[%emt 0:02:17]} 23. Qd2 {[%emt 0:01:31]} Rb1+ {[%emt 0:00:34]} 24. Rxb1 {[%emt 0:00:08]} Qxb1+ {[%emt 0:00:10]} 25. Ne1 {[%emt 0:00:03]} h6 {[%emt 0:00:30]} 26. h4 {[%emt 0:02:10]} Qf5 {[%emt 0:01:46]} 27. Nf3 {[%emt 0:00:37]} Bxf3 {[%emt 0:01:05]} 28. gxf3 {[%emt 0:00:06]} Qxf3 {[%emt 0:00:13]} 29. hxg5 {[%emt 0:00:06]} Qg4+ {[%emt 0:00:43]} 30. Kf1 {[%emt 0:00:29]} Qxg5 {[%emt 0:00:15]} 31. Qc3 {[%emt 0:00:24]} Qd8 {[%emt 0:01:50]} 32. Qf3 {[%emt 0:00:49]} Kg7 {[%emt 0:01:44]} 33. Qd3 {[%emt 0:01:20]} Qc7 {[%emt 0:01:41]} 34. Qe3 {[%emt 0:00:16]} Qc6 {[%emt 0:01:10]} 35. Qg3+ {[%emt 0:01:03]} Kf8 {[%emt 0:01:08]} 36. Qa3+ {[%emt 0:00:07]} Ke8 {[%emt 0:00:56]} 37. Qb4 {[%emt 0:00:50]} Qh1+ {[%emt 0:02:49]} 38. Ke2 {[%emt 0:00:11]} Qh5+ {[%emt 0:00:29]} 39. Kf1 {[%emt 0:00:54]} Qxe5 {[%emt 0:00:35]} 40. f4 {[%emt 0:00:35]} Qa1+ {[%emt 0:00:14]} 41. Kg2 {[%emt 0:00:23]} Qa2+ {[%emt 0:01:16]} 42. Kf3 {[%emt 0:00:23]} Qd5+ {[%emt 0:00:22]} 43. Ke3 {[%emt 0:00:38]} a5 {[%emt 0:01:09]} 44. Qb2 {[%emt 0:00:42]} Qc5+ {[%emt 0:00:57]} 45. Kf3 {[%emt 0:00:24]} Qc6+ {[%emt 0:01:27]} 46. Ke3 {[%emt 0:00:18]} Qxa4 {[%emt 0:00:15]} 47. Qh8+ {[%emt 0:00:10]} Ke7 {[%emt 0:00:16]} 48. Qxh6 {[%emt 0:00:09]} d5 {[%emt 0:01:15]} 49. Qg5+ {[%emt 0:00:13]} Kd7 {[%emt 0:01:11]} 50. Qf6 {[%emt 0:00:11]} Qe4+ {[%emt 0:01:09]} 51. Kf2 {[%emt 0:00:18]} Qf5 {[%emt 0:00:53]} 52. Qd4 {[%emt 0:00:33]} e5 {[%emt 0:03:05]} 53. Qa7+ {[%emt 0:00:32]} Ke6 {[%emt 0:00:15]} 54. Qb6+ {[%emt 0:00:09]} Ke7 {[%emt 0:00:26]} 55. Qa7+ {[%emt 0:00:15]} Kf6 {[%emt 0:00:41]} 56. Qb6+ {[%emt 0:00:24]} Kg7 {[%emt 0:00:20]} 57. Qxa5 {[%emt 0:00:38]} Qxf4+ {[%emt 0:00:20]} 58. Ke2 {[%emt 0:00:07]} d4 {[%emt 0:00:51]} 59. Qc7 {[%emt 0:00:06]} Qe3+ {[%emt 0:00:35]} 60. Kd1 {[%emt 0:00:20]} d3 {[%emt 0:00:33]} 61. Qxf7+ {[%emt 0:00:33]} Kh6 {[%emt 0:01:22]} 62. Qh7+ {[%emt 0:00:16]} Kg5 {[%emt 0:00:48]} 63. Qh6+ {[%emt 0:00:06]} Kxh6 {[%emt 0:01:07]} 1/2-1/2

[Event "ONJK-B 2019"]
[Site "Borne"]
[Date "2019.08.07"]
[Round "4.1"]
[White "Maters, Arthur"]
[Black "Van Weerden, Jur"]
[Result "1-0"]
[ECO "B06"]
[WhiteElo "2042"]
[BlackElo "1676"]
[Annotator "NA"]
[PlyCount "81"]
[EventDate "2019.08.05"]
[EventType "swiss"]
[EventCountry "NED"]
[SourceTitle "playchess.com"]
[Source "ChessBase"]
[SourceQuality "1"]
[TimeControl "5400+30"]

1. e4 {[%emt 0:00:00]} e6 {[%emt 0:00:00]} 2. d4 {[%emt 0:00:00]} g6 {[%emt 0:00:11]} 3. Nc3 {[%emt 0:00:00]} Bg7 {[%emt 0:00:06]} 4. h4 {[%emt 0:00:18]} Ne7 {[%emt 0:00:38]} 5. h5 {[%emt 0:00:07]} h6 {[%emt 0:00:18]} 6. hxg6 {[%emt 0:00:26]} Nxg6 {[%emt 0:00:23]} 7. Nf3 {[%emt 0:00:10]} Nc6 {[%emt 0:00:10]} 8. Be3 {[%emt 0:00:17]} b6 {[%emt 0:00:11]} 9. Qd2 {[%emt 0:00:32]} h5 {[%emt 0:01:03]} 10. O-O-O {[%emt 0:01:55]} d5 {[%emt 0:00:40]} 11. exd5 {[%emt 0:00:31]} exd5 {[%emt 0:00:10]} 12. Bb5 {[%emt 0:00:04]} Bb7 {[%emt 0:00:37]} 13. Bg5 {[%emt 0:00:09]} f6 {[%emt 0:00:21]} 14. Rde1+ {[%emt 0:02:10]} Nge7 {[%emt 0:00:14]} 15. Qd3 {[%emt 0:06:45]} fxg5 {[%emt 0:10:52]} 16. Nxg5 {[%emt 0:00:06]} Qd6 {[%emt 0:02:49]} 17. Kb1 {[%emt 0:04:16]} O-O-O {[%emt 0:10:34]} 18. Nf7 {[%emt 0:00:48]} Qg6 {[%emt 0:02:39]} 19. Qxg6 {[%emt 0:01:21]} Nxg6 {[%emt 0:00:11]} 20. Nxh8 {[%emt 0:00:05]} Bxh8 {[%emt 0:00:26]} 21. Re6 {[%emt 0:10:38]} Nce7 {[%emt 0:01:01]} 22. Bd3 {[%emt 0:00:35]} Rg8 {[%emt 0:04:29]} 23. f4 {[%emt 0:05:17]} Kd7 {[%emt 0:02:00]} 24. Rhe1 {[%emt 0:03:18]} Rg7 {[%emt 0:03:42]} 25. g3 {[%emt 0:02:56]} Nf8 {[%emt 0:02:42]} 26. Rh6 {[%emt 0:03:06]} Rg8 {[%emt 0:01:29]} 27. f5 {[%emt 0:00:54]} Bxd4 {[%emt 0:02:43]} 28. f6 {[%emt 0:01:15]} Neg6 {[%emt 0:06:16]} 29. Bf5+ {[%emt 0:01:27]} Kc6 {[%emt 0:00:28]} 30. f7 {[%emt 0:00:21]} Rg7 {[%emt 0:00:45]} 31. Bxg6 {[%emt 0:00:10]} Kc5 {[%emt 0:02:52]} 32. Bxh5 {[%emt 0:02:01]} Rxg3 {[%emt 0:00:36]} 33. Re8 {[%emt 0:01:35]} Bg7 {[%emt 0:00:50]} 34. Rh8 {[%emt 0:01:02]} Bxh8 {[%emt 0:02:50]} 35. Rxf8 {[%emt 0:00:09]} Bf6 {[%emt 0:00:57]} 36. Rg8 {[%emt 0:00:19]} Re3 {[%emt 0:01:37]} 37. f8=Q+ {[%emt 0:00:09]} Be7 {[%emt 0:00:18]} 38. Qf2 {[%emt 0:00:05]} d4 {[%emt 0:00:12]} 39. Nd1 {[%emt 0:00:23]} Re5 {[%emt 0:00:51]} 40. b4+ {[%emt 0:01:07]} Kxb4 {[%emt 0:01:34]} 41. Qf1 {[%emt 0:00:06]} 1-0

[Event "ONJK-B 2019"]
[Site "Borne"]
[Date "2019.08.07"]
[Round "4.2"]
[White "Mainka, Alwin"]
[Black "Rogge, Parcival"]
[Result "1/2-1/2"]
[ECO "B91"]
[WhiteElo "1989"]
[BlackElo "1743"]
[Annotator "NA"]
[PlyCount "70"]
[EventDate "2019.08.05"]
[EventType "swiss"]
[EventCountry "NED"]
[SourceTitle "playchess.com"]
[Source "ChessBase"]
[SourceQuality "1"]
[TimeControl "5400+30"]

1. e4 {[%emt 0:00:00]} c5 {[%emt 0:00:00]} 2. Nf3 {[%emt 0:00:00]} d6 {[%emt 0:00:00]} 3. d4 {[%emt 0:00:00]} cxd4 {[%emt 0:00:00]} 4. Nxd4 {[%emt 0:00:00]} Nf6 {[%emt 0:00:00]} 5. Nc3 {[%emt 0:00:00]} a6 {[%emt 0:00:00]} 6. g3 {[%emt 0:00:10]} e5 {[%emt 0:00:40]} 7. Nde2 {[%emt 0:00:06]} Be7 {[%emt 0:02:40]} 8. Bg5 {[%emt 0:00:09]} Nbd7 {[%emt 0:01:19]} 9. Bg2 {[%emt 0:01:59]} b5 {[%emt 0:02:04]} 10. a4 {[%emt 0:09:28]} bxa4 {[%emt 0:12:05]} 11. O-O {[%emt 0:05:37]} O-O {[%emt 0:06:48]} 12. Rxa4 {[%emt 0:05:57]} Bb7 {[%emt 0:07:18]} 13. Bxf6 {[%emt 0:02:56]} Nxf6 {[%emt 0:01:18]} 14. Qd2 {[%emt 0:01:50]} Qb6 {[%emt 0:09:59]} 15. Raa1 {[%emt 0:04:54]} Rac8 {[%emt 0:02:46]} 16. h3 {[%emt 0:05:27]} Rfd8 {[%emt 0:05:01]} 17. Rab1 {[%emt 0:02:27]} Qc5 {[%emt 0:02:53]} 18. Rfd1 {[%emt 0:01:04]} Rd7 {[%emt 0:04:20]} 19. g4 {[%emt 0:07:05]} h6 {[%emt 0:04:06]} 20. Ng3 {[%emt 0:01:47]} Qc4 {[%emt 0:06:01]} 21. Qd3 {[%emt 0:02:12]} Qxd3 {[%emt 0:01:54]} 22. Rxd3 {[%emt 0:01:12]} g6 {[%emt 0:00:30]} 23. Nf1 {[%emt 0:01:18]} Kf8 {[%emt 0:05:56]} 24. Ne3 {[%emt 0:00:23]} Bd8 {[%emt 0:01:03]} 25. Rc1 {[%emt 0:01:09]} Ba5 {[%emt 0:01:26]} 26. Ncd5 {[%emt 0:01:14]} Nxd5 {[%emt 0:05:10]} 27. Nxd5 {[%emt 0:00:08]} Bxd5 {[%emt 0:00:08]} 28. Rxd5 {[%emt 0:00:04]} Rc5 {[%emt 0:02:59]} 29. Rcd1 {[%emt 0:02:03]} Rxd5 {[%emt 0:01:02]} 30. Rxd5 {[%emt 0:00:14]} Bd8 {[%emt 0:00:30]} 31. Bf1 {[%emt 0:00:57]} a5 {[%emt 0:01:57]} 32. c4 {[%emt 0:01:16]} Bb6 {[%emt 0:01:57]} 33. Rb5 {[%emt 0:00:33]} Bd4 {[%emt 0:00:44]} 34. b3 {[%emt 0:01:59]} Ra7 {[%emt 0:00:55]} 35. Rd5 {[%emt 0:01:06]} Bc5 {[%emt 0:00:36]} 1/2-1/2

[Event "ONJK-B 2019"]
[Site "Borne"]
[Date "2019.08.07"]
[Round "4.3"]
[White "Molanus, Lennart"]
[Black "Albertus, Bram"]
[Result "0-1"]
[ECO "A92"]
[WhiteElo "1619"]
[BlackElo "1841"]
[Annotator "NA"]
[PlyCount "54"]
[EventDate "2019.08.05"]
[EventType "swiss"]
[EventCountry "NED"]
[SourceTitle "playchess.com"]
[Source "ChessBase"]
[SourceQuality "1"]
[TimeControl "5400+30"]

1. d4 {[%emt 0:00:00]} f5 {[%emt 0:00:00]} 2. g3 {[%emt 0:00:00]} Nf6 {[%emt 0:00:00]} 3. Bg2 {[%emt 0:00:00]} e6 {[%emt 0:00:07]} 4. Nf3 {[%emt 0:00:00]} d5 {[%emt 0:00:09]} 5. c4 {[%emt 0:00:49]} c6 {[%emt 0:00:08]} 6. O-O {[%emt 0:00:17]} Be7 {[%emt 0:06:48]} 7. Qc2 {[%emt 0:02:04]} O-O {[%emt 0:01:05]} 8. c5 {[%emt 0:02:19]} Nbd7 {[%emt 0:02:26]} 9. Nc3 {[%emt 0:00:12]} Ne4 {[%emt 0:01:40]} 10. a4 {[%emt 0:01:09]} a5 {[%emt 0:06:35]} 11. Na2 {[%emt 0:04:26]} b6 {[%emt 0:04:02]} 12. b4 {[%emt 0:19:22]} bxc5 {[%emt 0:06:44]} 13. dxc5 {[%emt 0:01:44]} Qc7 {[%emt 0:10:33]} 14. Nd4 {[%emt 0:05:59]} Nb8 {[%emt 0:06:41]} 15. f3 {[%emt 0:03:01]} Nf6 {[%emt 0:00:53]} 16. e4 {[%emt 0:00:59]} Qa7 {[%emt 0:07:49]} 17. Bf4 {[%emt 0:07:36]} axb4 {[%emt 0:16:07]} 18. Nb3 {[%emt 0:27:47]} Ba6 {[%emt 0:06:52]} 19. Nxb4 {[%emt 0:02:09]} Bc4 {[%emt 0:04:57]} 20. Bxb8 {[%emt 0:03:02]} Rfxb8 {[%emt 0:00:46]} 21. Nxc6 {[%emt 0:04:52]} Bxb3 {[%emt 0:00:41]} 22. Nxa7 {[%emt 0:00:13]} Bxc2 {[%emt 0:00:12]} 23. Nc6 {[%emt 0:00:22]} Bxc5+ {[%emt 0:00:20]} 24. Kh1 {[%emt 0:00:01]} Rc8 {[%emt 0:00:18]} 25. Rfc1 {[%emt 0:00:14]} Bxa4 {[%emt 0:02:24]} 26. Bf1 {[%emt 0:03:34]} Bxc6 {[%emt 0:00:57]} 27. Rxa8 {[%emt 0:00:13]} Bxa8 {[%emt 0:00:01]} 0-1

[Event "ONJK-B 2019"]
[Site "Borne"]
[Date "2019.08.07"]
[Round "4.4"]
[White "Klaren, Oscar"]
[Black "Hubers, Daan"]
[Result "1-0"]
[ECO "C02"]
[WhiteElo "1761"]
[BlackElo "1512"]
[Annotator "NA"]
[PlyCount "111"]
[EventDate "2019.08.05"]
[EventType "swiss"]
[EventCountry "NED"]
[SourceTitle "playchess.com"]
[Source "ChessBase"]
[SourceQuality "1"]
[TimeControl "5400+30"]

1. e4 {[%emt 0:00:00]} e6 {[%emt 0:00:00]} 2. d4 {[%emt 0:00:00]} d5 {[%emt 0:00:00]} 3. e5 {[%emt 0:00:00]} c5 {[%emt 0:00:00]} 4. c3 {[%emt 0:00:00]} Nc6 {[%emt 0:00:00]} 5. Nf3 {[%emt 0:00:07]} Qb6 {[%emt 0:00:35]} 6. a3 {[%emt 0:00:51]} a5 {[%emt 0:00:41]} 7. Be2 {[%emt 0:01:22]} cxd4 {[%emt 0:03:10]} 8. cxd4 {[%emt 0:00:26]} Nge7 {[%emt 0:00:29]} 9. O-O {[%emt 0:03:25]} Nf5 {[%emt 0:01:07]} 10. Be3 {[%emt 0:01:59]} Bd7 {[%emt 0:12:45]} 11. Nc3 {[%emt 0:00:45]} Be7 {[%emt 0:01:24]} 12. Qd2 {[%emt 0:00:48]} O-O {[%emt 0:00:37]} 13. Rfd1 {[%emt 0:01:10]} f6 {[%emt 0:02:25]} 14. Bf4 {[%emt 0:03:32]} a4 {[%emt 0:10:28]} 15. Bb5 {[%emt 0:05:35]} fxe5 {[%emt 0:04:05]} 16. Bxc6 {[%emt 0:00:56]} Bxc6 {[%emt 0:01:00]} 17. Nxe5 {[%emt 0:00:16]} Bf6 {[%emt 0:00:43]} 18. Rac1 {[%emt 0:01:10]} Bb5 {[%emt 0:02:51]} 19. Nxb5 {[%emt 0:01:09]} Qxb5 {[%emt 0:00:11]} 20. Rc5 {[%emt 0:00:30]} Qa6 {[%emt 0:01:39]} 21. Qc3 {[%emt 0:05:40]} Bxe5 {[%emt 0:01:36]} 22. Bxe5 {[%emt 0:00:12]} Rf7 {[%emt 0:03:22]} 23. Rc1 {[%emt 0:02:51]} Raf8 {[%emt 0:01:45]} 24. Rc2 {[%emt 0:02:21]} h6 {[%emt 0:02:16]} 25. Ra5 {[%emt 0:01:57]} Qb6 {[%emt 0:04:32]} 26. Rxa4 {[%emt 0:00:41]} Qb5 {[%emt 0:00:15]} 27. Rb4 {[%emt 0:00:23]} Qa6 {[%emt 0:00:26]} 28. Qb3 {[%emt 0:01:24]} b5 {[%emt 0:04:40]} 29. Rxb5 {[%emt 0:03:00]} Ne3 {[%emt 0:00:22]} 30. Re2 {[%emt 0:02:26]} Rc8 {[%emt 0:02:59]} 31. Re1 {[%emt 0:04:32]} Ng4 {[%emt 0:04:08]} 32. Bg3 {[%emt 0:00:55]} Nf6 {[%emt 0:02:14]} 33. Rb6 {[%emt 0:01:13]} Qa5 {[%emt 0:00:37]} 34. Qb4 {[%emt 0:00:43]} Qa7 {[%emt 0:00:42]} 35. Rbxe6 {[%emt 0:00:37]} Ne4 {[%emt 0:00:39]} 36. h3 {[%emt 0:01:20]} Rc4 {[%emt 0:00:41]} 37. Qb8+ {[%emt 0:00:35]} Qxb8 {[%emt 0:00:05]} 38. Bxb8 {[%emt 0:00:02]} Rxd4 {[%emt 0:00:48]} 39. Be5 {[%emt 0:01:05]} Rd2 {[%emt 0:01:07]} 40. f3 {[%emt 0:00:13]} Nc5 {[%emt 0:00:14]} 41. Re8+ {[%emt 0:00:25]} Kh7 {[%emt 0:00:07]} 42. Bc3 {[%emt 0:00:22]} Rc2 {[%emt 0:00:19]} 43. R8e2 {[%emt 0:00:16]} Rxe2 {[%emt 0:00:42]} 44. Rxe2 {[%emt 0:00:09]} Rd7 {[%emt 0:00:11]} 45. Bb4 {[%emt 0:01:09]} Nb3 {[%emt 0:03:15]} 46. Kf1 {[%emt 0:01:33]} Kg6 {[%emt 0:00:11]} 47. Ke1 {[%emt 0:00:30]} Kf6 {[%emt 0:00:44]} 48. Re3 {[%emt 0:01:02]} Na1 {[%emt 0:01:02]} 49. Kd2 {[%emt 0:01:28]} d4 {[%emt 0:00:04]} 50. Rd3 {[%emt 0:00:10]} Ke5 {[%emt 0:00:18]} 51. Bc5 {[%emt 0:00:28]} Rd5 {[%emt 0:01:30]} 52. b4 {[%emt 0:00:24]} Kf5 {[%emt 0:02:58]} 53. Kc1 {[%emt 0:03:06]} Re5 {[%emt 0:00:29]} 54. Bxd4 {[%emt 0:00:42]} Re1+ {[%emt 0:00:03]} 55. Kd2 {[%emt 0:00:05]} Rh1 {[%emt 0:00:24]} 56. Bxg7 {[%emt 0:00:57]} 1-0

[Event "ONJK-B 2019"]
[Site "Borne"]
[Date "2019.08.07"]
[Round "4.6"]
[White "De Putter, Nina"]
[Black "Michielsen, Lies"]
[Result "1-0"]
[ECO "B31"]
[WhiteElo "1631"]
[BlackElo "1489"]
[Annotator "NA"]
[PlyCount "85"]
[EventDate "2019.08.05"]
[EventType "swiss"]
[EventCountry "NED"]
[SourceTitle "playchess.com"]
[Source "ChessBase"]
[SourceQuality "1"]
[TimeControl "5400+30"]

1. e4 {[%emt 0:00:00]} c5 {[%emt 0:00:00]} 2. Nf3 {[%emt 0:00:00]} Nc6 {[%emt 0:00:00]} 3. Bb5 {[%emt 0:00:00]} g6 {[%emt 0:01:16]} 4. O-O {[%emt 0:00:45]} Bg7 {[%emt 0:02:04]} 5. Re1 {[%emt 0:00:55]} Nf6 {[%emt 0:06:18]} 6. e5 {[%emt 0:00:58]} Ng4 {[%emt 0:08:33]} 7. Bxc6 {[%emt 0:01:18]} bxc6 {[%emt 0:01:50]} 8. h3 {[%emt 0:01:29]} Nh6 {[%emt 0:00:26]} 9. Nc3 {[%emt 0:02:24]} O-O {[%emt 0:03:36]} 10. Ne4 {[%emt 0:05:14]} d6 {[%emt 0:07:41]} 11. d3 {[%emt 0:14:02]} f6 {[%emt 0:16:55]} 12. exd6 {[%emt 0:02:49]} exd6 {[%emt 0:01:02]} 13. Bf4 {[%emt 0:01:27]} Nf7 {[%emt 0:00:32]} 14. d4 {[%emt 0:10:17]} cxd4 {[%emt 0:03:22]} 15. Nxd4 {[%emt 0:00:42]} f5 {[%emt 0:08:29]} 16. Nc3 {[%emt 0:10:05]} Qb6 {[%emt 0:04:22]} 17. Nb3 {[%emt 0:04:55]} d5 {[%emt 0:06:08]} 18. Be3 {[%emt 0:11:02]} Qc7 {[%emt 0:02:08]} 19. Bc5 {[%emt 0:00:55]} Nd6 {[%emt 0:02:04]} 20. Qd2 {[%emt 0:07:36]} Nc4 {[%emt 0:04:11]} 21. Qe2 {[%emt 0:07:03]} Nd6 {[%emt 0:00:53]} 22. Nd4 {[%emt 0:03:56]} Rb8 {[%emt 0:06:22]} 23. Ne6 {[%emt 0:01:04]} Bxe6 {[%emt 0:01:28]} 24. Qxe6+ {[%emt 0:00:40]} Nf7 {[%emt 0:00:46]} 25. Bxf8 {[%emt 0:00:21]} Bxf8 {[%emt 0:01:02]} 26. Rab1 {[%emt 0:02:21]} Bg7 {[%emt 0:00:55]} 27. Na4 {[%emt 0:01:55]} Rb4 {[%emt 0:01:22]} 28. Qe8+ {[%emt 0:00:39]} Bf8 {[%emt 0:00:07]} 29. Nc5 {[%emt 0:00:37]} Rb8 {[%emt 0:02:16]} 30. Na6 {[%emt 0:01:28]} Rxe8 {[%emt 0:00:28]} 31. Nxc7 {[%emt 0:00:12]} Rb8 {[%emt 0:00:34]} 32. Re8 {[%emt 0:01:53]} Rxe8 {[%emt 0:01:29]} 33. Nxe8 {[%emt 0:00:07]} Bc5 {[%emt 0:00:24]} 34. Nf6+ {[%emt 0:01:21]} Kg7 {[%emt 0:00:07]} 35. Nd7 {[%emt 0:00:06]} Bd6 {[%emt 0:00:24]} 36. Re1 {[%emt 0:00:54]} Ng5 {[%emt 0:00:54]} 37. Ne5 {[%emt 0:00:53]} c5 {[%emt 0:00:11]} 38. Nc6 {[%emt 0:01:36]} a6 {[%emt 0:00:19]} 39. Re8 {[%emt 0:00:19]} Ne4 {[%emt 0:01:06]} 40. Ra8 {[%emt 0:00:44]} d4 {[%emt 0:00:22]} 41. Rxa6 {[%emt 0:00:32]} Kf6 {[%emt 0:00:17]} 42. f3 {[%emt 0:00:58]} Ng5 {[%emt 0:00:26]} 43. Nxd4 {[%emt 0:01:17]} 1-0